{"text_format":"1","workbook":"xlsx","n_sheets":3,"sheets":["1. Directives","2. Résumé par source de finance","3. Exemples de contributions en"],"not_rendered":{"charts":0,"images":3,"macros":0,"external_links":0,"defined_names":4,"comments":1,"pivot_tables":0},"unopened":[],"bounds":{"document_bytes":16777216,"sheet_cells":100000,"rows_first":2000,"rows_last":500,"rows_between":2000,"halvings":0,"cell_chars":16384,"cell_head_chars":4096},"cells_cut":0,"cells_raw":0,"read":"whole","date_system":"1900"}

{"sheet":"1. Directives","index":0,"n_rows":7,"n_cols":2,"rows_kept":7,"cut":false,"hidden":false,"merged":[[116,1,116,8],[122,1,122,8],[133,1,133,8],[152,1,152,8],[158,1,158,8],[214,1,214,8],[220,1,220,8],[178,1,178,8],[184,1,184,8],[195,1,195,8]]}
["Modèle d’éléments financiers de projet de Leadership technologique de SOC : Directives"]
[]
[1,"Veuillez vous référer à la légende de couleurs des onglets ci-dessous. Les onglets ne nécessitent pas tous des entrées.\n                                     - Nécessite des entrées. Veuillez consulter les onglets individuels pour obtenir plus de détails.\n                                     - Uniquement à des fins d’information/référence; ne nécessite pas d’entrées.\n\n                                                            "]
[2,"Les cellules du modèle sont ombragées/colorées à différentes fins. Certaines cellules nécessitent votre entrée manuelle, d’autres contiennent des menus déroulants et quelques cellules sont des résultats/calculs d’un chiffre en fonction de vos entrées. "]
[3,"Les cellules de couleur/ombragées en rouge indiquent que le format de l’information est incorrect ou que l’information ne satisfait pas les exigences budgétaires de SOC. Dans ces cas, vous devrez corriger les erreurs. Si vous cliquez sur ces cellules, un message s’affichera pour vous indiquer le problème relié à l’entrée de la cellule. "]
[4,"Les Lignes directrices sur l’admissibilité des coûts de SOC, les Lignes directrices sur les coûts étrangers et les Lignes directrices de contributions en nature se trouvent sur le Portail des membres de SOC. "]
[5,"Des exemples de contributions en nature sont présentés à l’onglet 3 de ce manuel. \nVeuillez les consulter lors de l’entrée des détails sur les contributions en nature. "]

{"sheet":"2. Résumé par source de finance","index":1,"n_rows":45,"n_cols":23,"rows_kept":45,"cut":false,"hidden":false,"merged":[[9,13,12,13],[2,4,2,5],[4,3,4,8],[5,0,5,8],[6,0,6,8],[7,0,7,2],[1,0,3,0],[1,1,3,3],[47,0,47,8],[7,3,7,6],[7,7,8,9],[9,7,23,9],[30,6,30,7],[31,6,31,7],[27,6,27,8],[29,6,29,8],[26,3,26,5]]}
["Vous pouvez ajouter des lignes au besoin dans l’encadré ci-dessous en utilisant les bascules +/- de l’axe de gauche. "]
[null,"Participant principal :"]
[]
[]
["Cellules remplissables","Cellules de remplissage automatique","Menu déroulant"]
["Résumé par source de financement"]
["***Lorsqu’une source de financement fait l’objet d’un élément de contrepartie de l’industrie et d’un élément autre que de contrepartie de l’industrie, veuillez alors entrer la source deux fois et indiquer s’il s’agit d’un financement (de contrepartie) ou d’un financement (autre que de contrepartie) dans la même cellule, à côté du nom de l’entreprise. ",null,null,null,null,null,null,null,null,null,"Veuillez ne pas changer le format des zones à l’extérieur de l’encadré entourant le formulaire d’entrée, car cela peut nuire à la fonctionnalité de la feuille de calcul. "]
["Détails des participants du projet",null,null,"Montant du financement/contribution",null,null,null,"Remarques/Description"]
["Nom","Type de financement","Contribution en contrepartie de SOC?","En espèces","En nature","Total","% du total de la contribution de contrepartie de l’industrie"]
["SOC ","Financement de SOC","SOC ",0,0,{"$f":"D10+E10","v":0}]
["Entrez source de financement","Financement de l’industrie","Oui",0,0,0,{"$f":"IFERROR((IF(AND(B11=\"Financement de l’industrie\", C11=\"Oui\"), F11/$E$29, 0)), 0)","v":0}]
["Entrez source de financement","Liste déroulante","Liste déroulante",0,0,0,{"$f":"IFERROR((IF(AND(B12=\"Financement de l’industrie\", C12=\"Oui\"), F12/$E$29, 0)), 0)","v":0}]
["Entrez source de financement","Liste déroulante","Liste déroulante",0,0,0,0]
["Entrez source de financement","Liste déroulante","Liste déroulante",0,0,0,0]
["Entrez source de financement","Liste déroulante","Liste déroulante",0,0,0,0]
["Entrez source de financement","Liste déroulante","Liste déroulante",0,0,0,0]
["Entrez source de financement","Liste déroulante","Liste déroulante",0,0,0,0]
["Entrez une source de financement","Liste déroulante","Liste déroulante",0,0,0,0]
["Entrez source de financement","Liste déroulante","Liste déroulante",0,0,0,0]
["Entrez source de financement","Liste déroulante","Liste déroulante",0,0,0,0]
["Entrez source de financement","Liste déroulante","Liste déroulante",0,0,0,0]
["Entrez source de financement","Liste déroulante","Liste déroulante",0,0,0,0]
["Entrez source de financement","Liste déroulante","Liste déroulante",0,0,0,0]
["Entrez source de financement","Liste déroulante","Liste déroulante",0,0,0,0]
[null,null,"Total :",{"$f":"SUM(D10:D24)","v":0},{"$f":"SUM(E10:E24)","v":0},{"$f":"SUM(F10:F24)","v":0},{"$f":"IFERROR(F25/$F$25, 0)","v":0}]
[]
[" ",null,null,"Pourcentage total pour le projet"]
[null,null,null,"Financement total de SOC :",{"$f":"SUMIF(B10:B24,\"Financement de SOC\",F10:F24)","v":0},{"$f":"IFERROR(E28/$F$25,0)","v":0},"Pourcentage de contribution en nature pour le projet"]
[null,null,null,"Tot. financement de contrepartie de l’industrie :",{"$f":"SUMIFS(F10:F24, B10:B24,\"Financement de l’industrie\", C10:C24, \"Oui\")","v":0},0,"Tot. contribution en nature de contrepartie de l’industrie :",{"$f":"SUMIFS(E10:E24, B10:B24,\"Financement de l’industrie\", C10:C24, \"oui\")","v":0},{"$f":"IFERROR(H29/E29,0)","v":0}]
[null,null,null,"Tot. financement de l’industrie sans contrepartie :",{"$f":"SUMIFS(F10:F24, B10:B24,\"Financement de l’industrie\", C10:C24, \"Non\")","v":0},0,"Pourcentages de remboursement"]
[null,null,null,"Financement total du gouvernement :",{"$f":"SUMIF(B10:B24,\"financement du gouvernement\",F10:F24)","v":0},{"$f":"IFERROR(E31/$F$25,0)","v":0},"Remboursement de SOC relié aux coûts admissibles financés (%) :",null,{"$f":"IFERROR(E28/(E28+E29), 0)","v":0}]
[null,null,null,"Total des autres financements",{"$f":"SUMIF(B10:B24, \"des autre financements\", F10:F24)","v":0},{"$f":"IFERROR(E32/$F$25,0)","v":0}," Contribution de contrepartie de l’industrie (%) :",null,{"$f":"IFERROR(E29/(E29+E28),0)","v":0}]
[null,null,null,null,null,null,null," "]
[]
[]
[null,null,null,null,null,null,null,null,null,null,null,null,null,null,null,null,null,null,"workpackages"]
[null,null,"Liste déroulante","Liste déroulante",null,null,null,null,null,null,null,null,null,"Drop-Down Box",null,"Drop-Down Box",null,null,null,"Names","Description","Dates","Value of work package"]
[null,null,"Oui","Financement de l’industrie",null,null,null,null,null,null,null,null,null,"Yes",null,1,null,null,1,null,null,null,500]
[null,null,"Non","financement du gouvernement","OSC Co-investment Rate:",0.42,null,null,null,null,null,null,null,"No",null,2,null,null,2,null,null,null,1200]
[null,null,"N/A","des autre financements","Max OSC Funding",{"$f":"(E28+E29)*F39","v":0},null,null,null,null,null,null,null,null,null,3,null,null,3,null,null,null,4000]
[null,null,null,null,null,null,null,null,null,null,null,null,null,null,null,4,null,null,4]
[null,null,null,null,null,null,null,null,null,null,null,null,null,null,null,5,null,null,5]
[]
[]
[null,"Veuillez ne pas changer le format des zones à l’extérieur de l’encadré entourant le formulaire d’entrée, car cela peut nuire à la fonctionnalité de la feuille de calcul. "]

{"sheet":"3. Exemples de contributions en","index":2,"n_rows":76,"n_cols":9,"rows_kept":76,"cut":false,"hidden":false,"merged":[[72,8,72,9],[73,8,73,9],[74,8,74,9],[75,8,75,9],[69,1,69,9],[70,1,71,1],[70,2,71,2],[70,3,71,3],[70,4,70,7],[70,8,71,9],[14,3,15,3],[14,4,14,7],[14,8,15,9],[16,8,16,9],[2,1,2,4],[2,6,2,8],[3,1,6,9],[13,1,13,9],[14,1,15,1],[14,2,15,2],[17,8,17,9],[18,8,18,9],[19,8,19,9],[22,1,23,9],[24,1,25,1],[24,2,25,2],[24,3,25,3],[24,4,24,7],[24,8,25,9],[26,8,26,9],[27,8,27,9],[28,8,28,9],[29,8,29,9],[68,1,68,9],[50,8,50,9],[31,1,32,9],[49,8,49,9],[47,8,47,9],[48,8,48,9],[44,1,44,9],[45,1,46,1],[45,2,46,2],[45,3,46,3],[45,4,45,7],[45,8,46,9]]}
[]
[]
[null,"Exemples de contributions en nature :"]
[null,"SOC ne rembourse pas les contributions en nature, mais la contribution en nature d’un membre de l’industrie à un projet compte pour les totaux des montants de contrepartie de l’industrie; ce qui permet à SOC d’égaler ou de rembourser les autres coûts admissibles à un pourcentage plus élevé."]
[]
[]
[]
[null,"1. Contribution en nature"]
[null,"Étape 1"]
[null,"Le membre « A » souhaite fournir gratuitement l’utilisation d’un navire pour exécuter des essais et valider de nouvelles technologies pour le projet. "]
[null,"La juste valeur marchande du bien/service est de 150 000 $; ce qui est soutenu par les tarifs du marché. "]
[null,"La contribution du membre A serait une contribution en nature et inscrite dans la colonne En nature ci-dessous.  "]
[null,"Le taux de remboursement de SOC approuvé pour ce projet est de 42 %."]
[null,"Résumé par source de financement"]
[null,"Nom","Type de financement","Contribution en contrepartie de SOC?","Montant du financement",null,null,null,"Remarques/Description"]
[null,null,null,null,"En espèces","En nature","Total","% du total"]
[null,"Contribution/ ","Financement de SOC","Contribution/",0,0,{"$f":"E17+F17","v":0},{"$f":"IFERROR(G17/#REF!, 0)","v":0}]
[null,"Membre A","Financement de l’industrie","Oui",0,150000,{"$f":"E18+F18","v":150000},{"$f":"IFERROR(G18/#REF!, 0)","v":0}]
[null,"Entrez une source de financement","Liste déroulante","Oui",0,0,0,{"$f":"IFERROR(G19/#REF!, 0)","v":0}]
[null,"Entrez une source de financement","Liste déroulante","Oui",0,0,{"$f":"E20+F20","v":0},{"$f":"IFERROR(G20/#REF!, 0)","v":0}]
[]
[null,"Étape 2"]
[null,"Dans ce cas, le membre A dépensera également 108 621 $ en salaires et traitements pour le personnel travaillant directement sur le projet. Alors que SOC aurait autrement remboursé ou financé ces coûts à 42 %, SOC peut rembourser ou financer jusqu’à 108 621 $ de salaires et traitements puisque le membre A verse également une contribution en nature de 150 000 $ (total de 258 621 $ en coûts admissibles),"]
[]
[null,"Nom","Type de financement","Contribution en contrepartie de SOC?","Montant du financement",null,null,null,"Remarques/Description"]
[null,null,null,null,"En espèces","En nature","Total","% du total"]
[null,"Contribution/ ","Financement de SOC","Contribution/",108621,0,{"$f":"E27+F27","v":108621},{"$f":"IFERROR(G27/#REF!, 0)","v":0}]
[null,"Membre A","Financement de l’industrie","Oui",0,150000,{"$f":"E28+F28","v":150000},{"$f":"IFERROR(G28/#REF!, 0)","v":0}]
[null,"Entrez une source de financement","Liste déroulante","Oui",0,0,0,{"$f":"IFERROR(G29/#REF!, 0)","v":0}]
[null,"Entrez une source de financement","Liste déroulante","Oui",0,0,{"$f":"E30+F30","v":0},{"$f":"IFERROR(G30/#REF!, 0)","v":0}]
[]
[null,"Bien que SOC ne rembourse pas directement les contributions en nature, la contribution en nature est incluse dans le calcul du montant de contrepartie/remboursement total de SOC."]
[]
[null,"Coûts en espèces réduits - ils peuvent être utilisés dans des circonstances très particulières; veuillez consulter les Lignes directrices sur les contributions en nature de SOC. "]
[null,"Nécessite une approbation préalable de SOC"]
[]
[null,"Membre de SOC"]
[null,"2a. Un membre souhaite fournir des licences logicielles qu’il vend dans le cadre de ses activités normales à la contribution en nature au projet et devant être remboursé par SOC pour une partie de la contribution en nature."]
[null,"Le membre B souhaite fournir des licences logicielles comme contribution en nature au projet qui seront utilisées par le personnel travaillant sur le projet. "]
[null,"Le membre B vend des licences logicielles dans le cadre de ses activités commerciales régulières et il a donc accès aux prix du marché. "]
[null,"La juste valeur marchande (JVM) des licences logicielles est de 150 000 $ et le membre B aimerait être remboursé 50 % de la JVM."]
[null,"Le membre émettrait alors une facture de 150 000 $ à SOC et montrerait la partie réduite de 50 % de la JVM. "]
[null,"SOC paierait au membre 75 000 $ et ce montant serait inscrit dans le cadre de la contribution de SOC."]
[null,"Les 75 000 $ restants seraient comptabilisés comme une contribution en nature."]
[null,"Résumé par source de financement"]
[null,"Nom","Type de financement","Contribution en contrepartie de SOC?","Montant du financement",null,null,null,"Remarques/Description"]
[null,null,null,null,"En espèces","En nature","Total","% du total"]
[null,"Contribution/ ","Financement de SOC","Contribution/",75000,0,{"$f":"E48+F48","v":75000},{"$f":"IFERROR(G48/#REF!, 0)","v":0}]
[null,"Membre A","Financement de l’industrie","Oui",0,0,{"$f":"E49+F49","v":0},{"$f":"IFERROR(G49/#REF!, 0)","v":0}]
[null,"Membre B","Financement de l’industrie","Oui",0,75000,{"$f":"E50+F50","v":75000},{"$f":"IFERROR(G50/#REF!, 0)","v":0}]
[null,"Entrez une source de financement","Liste déroulante","Liste déroulante",0,0,{"$f":"E51+F51","v":0},{"$f":"IFERROR(G51/#REF!, 0)","v":0}]
[null," "]
[]
[null,"Coûts en espèces réduits - ils peuvent être utilisés dans des circonstances très particulières; veuillez consulter les Lignes directrices sur les contributions en nature de SOC. "]
[null,"Nécessite une approbation préalable de SOC"]
[]
[null,"Membre à membre"]
[null,"2b. Le membre B souhaite être remboursé pour une partie de JVM de son bien/service et un autre partenaire du projet l’achètera à un prix réduit."]
[null,"      Le membre B vend des produits dans le cadre de ses activités commerciales régulières et il a accès aux prix du marché. "]
[null," "]
[null,"La juste valeur marchande (JVM) est de 150 000 $ et le membre B souhaite être remboursé à 20 %."]
[null,"Le membre B émet une facture au membre C pour la JVM en entier du produit et affiche une portion à prix réduit de 20 %."]
[null,"Le membre C paie le membre B pour un solde de 150 000 $ - Réduction de 30 000 $ = 120 000 $."]
[null,"Le membre B présente le rabais (30 000 $) comme une contribution de financement en nature. "]
[null,"Le membre C présente le solde (120 000 $) comme suit : "]
[null,"    Financement de SOC",60000]
[null,"    Membre C",60000]
[]
[null,"Dans l’exemple ci-dessous, le financement de contrepartie total de l’industrie est égal à 90 000 $ (60 000 $ du membre C et 30 000 $ pour le membre B). À l’heure actuelle, SOC ne verse que 60 000 $. Toutefois, si le projet consacre plus de fonds aux coûts admissibles de projet, SOC pourrait financer ou rembourser 30 000 $ de plus pour égaler le financement de 90 000 $ de l’industrie."]
[null,"Résumé par source de financement"]
[null,"Nom","Type de financement","Contribution en contrepartie de SOC?","Montant du financement",null,null,null,"Remarques/Description"]
[null,null,null,null,"En espèces","En nature","Total","% du total"]
[null,"Contribution/ ","Financement de SOC","Contribution/",60000,0,{"$f":"E73+F73","v":60000},{"$f":"IFERROR(G73/#REF!, 0)","v":0}]
[null,"Membre A","Financement de l’industrie","Oui",0,0,{"$f":"E74+F74","v":0},{"$f":"IFERROR(G74/#REF!, 0)","v":0}]
[null,"Membre B","Financement de l’industrie","Oui",0,30000,{"$f":"E75+F75","v":30000},{"$f":"IFERROR(G75/#REF!, 0)","v":0}]
[null,"Membre C","Financement de l’industrie","Oui",60000,0,{"$f":"E76+F76","v":60000},{"$f":"IFERROR(G76/#REF!, 0)","v":0}]